bitfinex/quotes_SOLUSD_20251208
["timestamp","ask_amount","ask_price","bid_price","bid_amount"]
[1765183636336,12.14672374,136.38,136.36,16.81347381]
[1765183636953,8.08,136.38,136.37,0.67]
[1765183637254,0.69,136.37,136.34,8.80994492]
[1765183637452,4.06672374,136.36,136.34,8.80994492]
[1765183637654,8.08,136.35,136.34,8.80994492]
[1765183637856,12.83672374,136.35,136.3,19.01143863]
[1765183638040,4.06672374,136.34,136.31,16.14585317]
[1765183638241,4.06672374,136.34,136.31,16.81585317]
[1765183638441,4.75672374,136.34,136.31,16.81585317]
[1765183638643,12.14672374,136.35,136.32,0.67]
[1765183638945,8.08,136.35,136.32,0.67]
[1765183639145,8.77,136.35,136.32,0.67]
[1765183639746,4.75672374,136.38,136.33,8.80994492]
[1765183639948,8.08,136.37,136.33,8.80994492]
[1765183640156,8.08,136.37,136.33,9.47994492]
[1765183640157,8.77,136.37,136.33,9.47994492]
[1765183640658,8.77,136.37,136.34,0.67]
[1765183641062,8.08,136.36,136.34,8.00440764]
[1765183641375,12.14672374,136.36,136.33,16.82500426]
[1765183641675,12.80672374,136.36,136.33,8.80994492]
[1765183642062,8.08,136.36,136.34,8.01455815]
[1765183643057,8.08,136.36,136.33,16.14485052]
[1765183643257,8.08,136.36,136.33,16.82485052]
[1765183643458,12.05980145,136.37,136.33,16.82485052]
[1765183643757,8.08,136.36,136.33,16.82485052]
[1765183644262,8.08,136.35,136.33,16.82485052]
[1765183644642,8.08,136.35,136.33,0.68]
[1765183645658,8.08,136.35,136.33,8.0148693]
[1765183645966,8.08,136.35,136.33,0.68]
[1765183648360,8.08,136.35,136.33,8.01503295]
[1765183658978,8.08,136.35,136.33,7.33503295]
[1765183659152,8.08,136.35,136.33,0.68]
[1765183660568,0.66,136.39,136.34,27.72288739]
[1765183660774,10.68407847,136.4,136.34,27.72288739]
[1765183660959,8.08,136.4,136.36,11.41402339]
[1765183661352,8.08,136.4,136.37,0.68]
[1765183661569,2.60407847,136.42,136.38,8.80994492]
[1765183661774,8.08,136.41,136.38,8.80994492]
[1765183662072,8.08,136.42,136.4,8.80994492]
[1765183662563,10.03368909,136.44,136.4,8.80994492]
[1765183662564,7.42961062,136.44,136.4,16.14117794]
[1765183662760,8.08,136.43,136.4,16.82117794]
[1765183663571,7.42961062,136.44,136.41,0.68]
[1765183663777,8.08,136.43,136.41,0.68]
[1765183664281,8.08,136.43,136.41,8.01068465]
[1765183664655,0.1,136.44,136.43,25.11880892]
[1765183664864,0.1,136.44,136.43,27.72288739]
[1765183665069,0.1,136.44,136.43,28.40288739]
[1765183665677,0.1,136.44,136.43,35.73265357]
[1765183665866,0.1,136.44,136.43,22.02786804]
[1765183666062,0.1,136.44,136.43,29.35516238]
[1765183666265,1.42333772,136.45,136.44,8.80994492]
[1765183666584,1.42333772,136.45,136.44,12.09402339]
[1765183667584,2.70407847,136.53,136.48,8.80994492]
[1765183667585,8.08448922,136.53,136.48,8.80994492]
[1765183667757,8.74,136.52,136.5,8.80994492]
[1765183668164,0.66,136.51,136.47,19.59294247]
[1765183668370,0.66,136.51,136.48,8.80994492]
[1765183668582,0.66,136.51,136.48,11.41402339]
[1765183669166,16.06501964,136.52,136.48,19.42097366]
[1765183669680,0.66,136.51,136.48,12.09402339]
[1765183670399,0.66,136.51,136.48,9.48994492]
[1765183671274,10.58986848,136.51,136.48,9.48994492]
[1765183673588,7.98579001,136.51,136.48,9.48994492]
[1765183674094,0.66,136.51,136.48,9.48994492]
[1765183674466,0.66,136.51,136.48,16.81702393]
[1765183675968,18.70920289,136.52,136.48,16.82702393]
[1765183677675,0.1,136.53,136.5,8.80994492]
[1765183677889,0.1,136.53,136.52,11.41402339]
[1765183678070,0.1,136.53,136.52,12.10402339]
[1765183679481,0.1,136.53,136.52,19.42895746]
[1765183682776,0.1,136.56,136.55,25.11880892]
[1765183682977,0.1,136.56,136.55,27.72288739]
[1765183683295,7.33145977,136.62,136.6,8.80994492]
[1765183683473,7.33145977,136.62,136.61,35.04299572]
[1765183683885,3.82327946,136.81,136.65,25.11880892]
[1765183684084,3.28407847,136.74,136.69,18.91294247]
[1765183684387,0.68,136.8,136.74,16.308864]
[1765183684587,0.68,136.79,136.75,2.60407847]
[1765183684994,0.68,136.79,136.76,11.41402339]
[1765183685193,28.49065123,136.82,136.76,11.41402339]
[1765183685403,2.60407847,136.8,136.76,8.80994492]
[1765183686079,25.58292521,136.81,136.72,16.308864]
[1765183686080,2.60407847,136.77,136.72,16.308864]
[1765183686285,25.58292521,136.81,136.71,16.308864]
[1765183686286,2.60407847,136.75,136.71,16.308864]
[1765183686585,10.72407847,136.78,136.73,2.60407847]
[1765183686787,8.12,136.78,136.74,6.16306436]
[1765183687002,8.12,136.78,136.72,25.11880892]
[1765183687003,31.74598957,136.81,136.76,6.16306436]
[1765183687200,0.68,136.8,136.76,6.16306436]
[1765183687396,7.99015582,136.8,136.75,32.43134663]
[1765183687592,14.15322018,136.8,136.75,31.28187328]
[1765183687790,0.68,136.79,136.75,31.28187328]
[1765183688193,0.68,136.79,136.75,39.26444422]
[1765183688597,7.31015582,136.8,136.75,39.26444422]
[1765183688800,0.68,136.79,136.75,39.26444422]
[1765183689099,0.68,136.79,136.69,21.95630694]
[1765183689100,6.16306436,136.76,136.69,21.95630694]
[1765183689406,7.31528895,136.7,136.65,6.83306436]
[1765183689585,13.47835331,136.7,136.64,14.28306436]
[1765183689792,0.68,136.69,136.65,8.80994492]
[1765183690083,6.84306436,136.69,136.63,6.83306436]
[1765183690606,7.31528895,136.7,136.61,6.16306436]
[1765183690607,6.16306436,136.67,136.61,6.16306436]
[1765183690807,6.16306436,136.66,136.6,14.15370857]
[1765183691008,6.16306436,136.64,136.6,8.12]
[1765183691390,0.68,136.63,136.6,8.12]
[1765183691591,0.68,136.63,136.62,16.308864]
[1765183691801,18.29284564,136.67,136.62,25.11880892]
[1765183691802,13.48062542,136.66,136.62,25.11880892]
[1765183692004,14.16062542,136.66,136.62,32.43833122]
[1765183692309,0.68,136.65,136.63,8.80994492]
[1765183692685,0.68,136.71,136.67,8.80994492]
[1765183693106,0.68,136.71,136.67,9.47994492]
[1765183693305,14.28306436,136.73,136.67,9.47994492]
[1765183693507,0.68,136.73,136.69,31.28187328]
[1765183693711,8.8,136.75,136.69,31.28187328]
[1765183693891,0.68,136.74,136.69,31.28187328]
[1765183694790,7.99357427,136.74,136.69,31.28187328]
[1765183694991,14.15663863,136.74,136.69,31.28187328]
[1765183695193,0.68,136.73,136.69,25.11880892]
[1765183695396,0.68,136.73,136.69,38.59764529]
[1765183696090,18.28112979,136.76,136.72,16.308864]
[1765183696091,0.68,136.76,136.72,16.308864]
[1765183696902,7.99216158,136.76,136.72,16.308864]
[1765183697113,14.15522594,136.76,136.72,16.308864]
[1765183697293,0.68,136.75,136.72,16.308864]
[1765183698413,0.68,136.75,136.72,23.62304665]
[1765183700212,0.68,136.79,136.77,8.80994492]
[1765183700595,0.68,136.79,136.77,16.1213499]
[1765183701111,18.33854212,136.82,136.77,22.28441426]
[1765183701318,0.69,136.81,136.78,6.16306436]
[1765183701714,0.69,136.81,136.79,8.80994492]
[1765183702228,2.90949392,136.82,136.79,34.396391]
[1765183702400,2.90949392,136.82,136.8,6.16306436]
[1765183702723,2.90949392,136.82,136.81,14.97300928]
[1765183703213,2.90949392,136.82,136.81,15.66300928]
[1765183704112,2.90949392,136.82,136.81,31.11241648]
[1765183704315,0.69,136.88,136.82,8.80994492]
[1765183704520,0.69,136.88,136.86,6.16306436]
[1765183704715,0.69,136.9,136.86,14.97300928]
[1765183705320,15.44418502,136.91,136.81,16.1394072]
[1765183705321,14.25972439,136.87,136.81,16.1394072]
[1765183705523,14.25972439,136.87,136.82,8.80994492]
[1765183705820,0.69,136.86,136.82,8.80994492]
[1765183706021,0.69,136.86,136.82,14.97300928]
[1765183706233,16.308864,136.92,136.85,6.16306436]
[1765183706234,0.69,136.92,136.85,6.16306436]
[1765183706395,0.99999999,136.98,136.91,6.16306436]
[1765183706396,0.69,136.96,136.91,6.16306436]
[1765183706732,0.69,136.97,136.95,10.69534964]
[1765183706906,0.69,136.99,136.93,8.80994492]
[1765183707108,0.69,136.98,136.96,10.69534964]
[1765183707324,16.22931964,137.0,136.96,10.69534964]
[1765183707526,16.22931964,137.0,136.93,9.49994492]
[1765183707527,8.9299,137.0,136.97,10.69534964]
[1765183707903,0.0999,137.0,136.97,10.69534964]
[1765183708097,0.69,136.99,136.97,10.69534964]
[1765183708298,0.7899,137.0,136.97,10.69534964]
[1765183708729,0.7899,137.0,136.96,10.69534964]
[1765183709340,10.69534964,136.97,136.92,27.00421364]
[1765183709630,10.69534964,136.96,136.92,8.80994492]
[1765183709835,11.38534964,136.96,136.92,8.80994492]
[1765183710002,0.69,136.95,136.92,8.80994492]
[1765183710202,18.68743306,136.95,136.9,10.69534964]
[1765183710415,10.69534964,136.94,136.9,8.80994492]
[1765183710603,11.38534964,136.94,136.9,8.80994492]
[1765183710798,10.69534964,136.92,136.87,8.80994492]
[1765183711020,11.38534964,136.93,136.87,37.50670244]
[1765183711321,25.55692095,136.95,136.85,18.00219923]
[1765183711322,10.69534964,136.91,136.85,18.00219923]
[1765183711535,10.69534964,136.9,136.84,41.45757905]
[1765183711747,11.38534964,136.91,136.85,19.50529456]
[1765183711907,11.38534964,136.91,136.86,10.69534964]
[1765183712100,0.69,136.9,136.86,10.69534964]
[1765183712299,0.69,136.9,136.86,18.00200845]
[1765183712526,0.69,136.92,136.86,36.26885047]
[1765183712820,0.69,136.89,136.86,7.30663377]
[1765183713217,11.38534964,136.91,136.86,7.30663377]
[1765183713620,0.69,136.91,136.86,7.99663377]
[1765183714313,10.69534964,136.9,136.86,7.30663377]
[1765183714503,11.38534964,136.91,136.86,7.30663377]
[1765183715132,11.38534964,136.91,136.84,45.25905117]
[1765183715133,10.69534964,136.88,136.82,8.85]
[1765183715420,0.69,136.9,136.83,8.80994492]
[1765183715421,10.69534964,136.87,136.83,8.80994492]
[1765183715802,11.38534964,136.87,136.83,8.80994492]
[1765183715997,11.38534964,136.87,136.83,16.8081824]
[1765183716333,10.69534964,136.88,136.83,16.8081824]
[1765183716824,11.38534964,136.88,136.83,16.8081824]
[1765183717027,19.54534964,136.9,136.85,8.80994492]
[1765183717222,19.54534964,136.9,136.83,16.1181824]
[1765183717223,10.69534964,136.86,136.82,8.80994492]
[1765183717403,10.69534964,136.85,136.82,8.80994492]
[1765183717602,10.69534964,136.84,136.8,8.80994492]
[1765183717802,10.69534964,136.84,136.8,16.11969903]
[1765183718022,11.38534964,136.84,136.8,16.11969903]
[1765183718225,0.69,136.84,136.8,16.11969903]
[1765183718724,0.69,136.89,136.83,19.50529456]
[1765183719032,0.69,136.89,136.86,10.69534964]
[1765183719228,8.16,136.91,136.87,10.69534964]
[1765183719407,8.16,136.91,136.88,10.69534964]
[1765183719601,8.85,136.91,136.87,10.69534964]
[1765183719827,0.69,136.9,136.86,19.50529456]
[1765183720633,0.69,136.9,136.86,8.80994492]
[1765183720805,0.69,136.9,136.86,16.11660832]
[1765183721202,8.16,136.91,136.87,11.38534964]
[1765183721424,8.85,136.91,136.87,10.69534964]
[1765183721626,10.69534964,136.88,136.81,10.69534964]
[1765183721932,10.69534964,136.89,136.84,16.11771952]
[1765183722135,0.69,136.9,136.83,10.69534964]
[1765183722136,0.69,136.9,136.86,18.0018267]
[1765183722649,0.69,136.9,136.86,7.30647706]
[1765183723729,7.9946613,136.9,136.86,7.30647706]
[1765183724125,0.69,136.89,136.86,7.30647706]
[1765183725746,7.99535581,136.89,136.82,10.69534964]
[1765183725915,10.69534964,136.86,136.79,10.69534964]
[1765183726109,8.16,136.85,136.79,18.00563441]
[1765183726329,8.16,136.85,136.78,34.58616114]
[1765183726330,8.85,136.85,136.8,18.00523266]
[1765183726840,0.69,136.84,136.8,18.00523266]
[1765183727531,7.99800136,136.84,136.79,26.8156106]
[1765183727924,0.69,136.83,136.79,8.80994492]
[1765183728316,0.69,136.83,136.78,7.31096047]
[1765183729310,0.69,136.83,136.77,8.80994492]
[1765183729311,11.38534964,136.83,136.77,8.80994492]
[1765183729515,7.30887297,136.82,136.77,8.80994492]
[1765183729710,8.16,136.81,136.77,8.80994492]
[1765183729912,8.85,136.81,136.77,8.80994492]
[1765183730132,0.69,136.8,136.77,8.80994492]
[1765183731338,0.69,136.8,136.76,18.00739361]
[1765183732123,8.00005176,136.8,136.76,18.00739361]
[1765183732442,8.00005176,136.8,136.74,27.00421364]
[1765183732617,0.66,136.79,136.74,10.69534964]
[1765183733519,25.58853633,136.78,136.74,10.69534964]
[1765183733724,8.16,136.77,136.74,10.69534964]
[1765183733945,8.82,136.77,136.73,10.69534964]
[1765183734141,0.66,136.76,136.72,16.12381801]
[1765183734444,0.66,136.76,136.73,10.69534964]
[1765183736527,8.16,136.77,136.73,18.66879157]
[1765183737033,8.16,136.77,136.74,11.35534964]
[1765183737238,8.16,136.77,136.75,10.69534964]
[1765183737648,16.13160665,136.77,136.73,18.00879157]
[1765183737839,0.66,136.76,136.72,8.80994492]
[1765183738428,0.66,136.76,136.7,10.69534964]
[1765183738627,0.66,136.76,136.7,8.80994492]
[1765183738831,0.66,136.76,136.7,19.50529456]
[1765183739160,0.66,136.76,136.7,8.80994492]
[1765183739327,0.66,136.76,136.7,19.50529456]
[1765183739723,25.59414989,136.75,136.68,18.0114913]
[1765183740037,25.59414989,136.75,136.67,17.188864]
[1765183740038,10.69534964,136.74,136.67,7.51656867]
[1765183740354,10.69534964,136.74,136.67,9.00994492]
[1765183740355,18.85534964,136.73,136.67,9.00994492]
[1765183740539,19.54534964,136.73,136.67,9.00994492]
[1765183740741,19.54534964,136.73,136.67,0.2]
[1765183740742,11.38534964,136.72,136.67,0.2]
[1765183741055,10.69534964,136.71,136.67,0.2]
[1765183741262,10.69534964,136.7,136.67,0.2]
[1765183741443,8.16,136.69,136.67,0.2]
[1765183741763,7.31635937,136.68,136.67,0.2]
[1765183742055,0.69,136.68,136.67,0.2]
[1765183743041,15.47593155,136.69,136.67,0.2]
[1765183743249,16.16593155,136.69,136.67,0.2]
[1765183743831,0.69,136.68,136.67,0.2]
[1765183744870,8.00635937,136.68,136.67,0.2]
[1765183746633,8.16,136.69,136.67,0.2]
[1765183746634,15.47599026,136.69,136.67,0.2]
[1765183747159,16.16599026,136.69,136.67,0.2]
[1765183747367,0.69,136.68,136.67,0.2]
[1765183747856,52.87921357,136.73,136.67,0.2]
[1765183747857,0.69,136.78,136.7,8.80994492]
[1765183748080,0.69,136.82,136.77,10.69534964]
[1765183748255,0.69,136.82,136.74,8.80994492]
[1765183748256,8.16,136.81,136.79,10.69534964]
[1765183748747,10.69534964,136.86,136.8,10.69534964]
[1765183748748,0.69,136.85,136.8,10.69534964]
[1765183749133,11.38534964,136.85,136.79,10.69534964]
[1765183749534,0.69,136.84,136.79,10.69534964]
[1765183749749,8.18,136.83,136.79,10.69534964]
[1765183750166,16.17874364,136.83,136.79,10.69534964]
[1765183750352,15.48874364,136.83,136.8,10.69534964]
[1765183750531,8.16,136.86,136.82,10.69534964]
[1765183750741,8.16,136.86,136.83,10.69534964]
[1765183751047,8.16,136.86,136.81,0.68]
[1765183751048,19.54534964,136.86,136.8,35.81415856]
[1765183751255,11.38534964,136.85,136.79,11.37534964]
[1765183751455,11.38534964,136.85,136.79,18.00556626]
[1765183751659,8.16,136.86,136.82,10.69534964]
[1765183751964,8.16,136.85,136.83,10.69534964]
[1765183752352,8.16,136.85,136.82,7.98875775]
[1765183753068,15.46736895,136.85,136.81,7.30939899]
[1765183753266,15.46736895,136.85,136.81,7.98939899]
[1765183753569,15.46736895,136.85,136.81,18.68474863]
[1765183753769,16.15736895,136.85,136.81,8.80994492]
[1765183754274,15.46736895,136.85,136.81,16.11934099]
[1765183754645,8.16,136.85,136.81,27.49469063]
[1765183755189,8.16,136.85,136.82,11.37534964]
[1765183755350,8.16,136.85,136.82,0.68]
[1765183755670,15.46677668,136.86,136.82,0.68]
[1765183755868,16.15677668,136.86,136.81,26.81469063]
[1765183756064,16.15677668,136.86,136.81,16.79934099]
[1765183758549,16.15677668,136.86,136.81,27.49469063]
[1765183758961,8.16,136.86,136.82,8.80994492]
[1765183759164,0.69,136.85,136.81,34.31360971]
[1765183759351,0.69,136.85,136.81,16.308864]
[1765183759558,11.38534964,136.85,136.8,8.80994492]
[1765183759765,11.38534964,136.85,136.8,16.11985927]
[1765183759971,0.69,136.84,136.8,16.11985927]
[1765183761374,7.99791239,136.84,136.8,16.11985927]
[1765183761874,10.69534964,136.82,136.77,16.308864]
[1765183762055,8.87,136.83,136.8,8.80994492]
[1765183762371,8.87,136.83,136.8,16.11973288]
[1765183762372,8.16,136.83,136.8,16.11973288]
[1765183762568,8.16,136.83,136.81,0.65]
[1765183762755,8.16,136.83,136.81,7.95939826]
[1765183762957,8.16,136.83,136.8,26.81504328]
[1765183763380,8.16,136.83,136.8,27.46504328]
[1765183766056,8.16,136.83,136.8,16.76969364]
[1765183766379,8.16,136.83,136.8,16.11969364]
[1765183768079,10.69534964,136.81,136.76,8.80994492]
[1765183768275,7.3086422,136.83,136.78,10.69534964]
[1765183768681,7.3086422,136.83,136.79,6.80675648]
[1765183768887,7.3086422,136.83,136.79,7.96028312]
[1765183769078,8.0186422,136.83,136.79,7.96028312]
[1765183769581,6.86675648,136.82,136.78,16.12076549]
[1765183769755,14.31675648,136.81,136.78,16.12076549]
[1765183770078,22.33622934,136.81,136.75,41.39643768]
[1765183770278,6.86675648,136.8,136.75,7.31245909]
[1765183770453,6.15675648,136.79,136.75,7.31245909]
[1765183770654,6.15675648,136.79,136.74,16.12288669]
[1765183770655,6.15675648,136.78,136.74,16.12288669]
[1765183770883,15.02675648,136.78,136.73,8.80994492]
[1765183771068,0.71,136.77,136.72,6.15675648]
[1765183771269,0.71,136.77,136.73,8.80994492]
[1765183771270,6.86675648,136.77,136.73,8.80994492]
[1765183771669,0.71,136.76,136.73,7.31362972]
[1765183772186,6.15675648,136.77,136.73,7.31362972]
[1765183772187,14.17833552,136.77,136.73,7.31362972]
[1765183772374,7.31157904,136.77,136.73,7.31362972]
[1765183772586,0.71,136.76,136.73,7.31362972]
[1765183773673,8.02208506,136.76,136.72,8.80994492]
[1765183773876,6.15675648,136.74,136.67,10.1729316]
[1765183774174,6.15675648,136.71,136.67,4.01617512]
[1765183774491,14.31675648,136.71,136.67,4.01617512]
[1765183774692,6.86675648,136.7,136.67,4.01617512]
[1765183774897,0.71,136.7,136.67,4.01617512]
[1765183775385,6.86675648,136.7,136.67,4.01617512]
[1765183775585,0.71,136.7,136.67,4.01617512]
[1765183775765,0.71,136.69,136.67,0.2]
[1765183775969,15.02675648,136.69,136.67,0.2]
[1765183776379,0.71,136.68,136.67,0.2]
[1765183776576,6.86675648,136.68,136.67,0.2]
[1765183777712,14.18311585,136.68,136.67,0.2]
[1765183778365,6.86675648,136.68,136.67,0.2]
[1765183778569,8.16,136.68,136.67,0.2]
[1765183778980,8.16,136.68,136.67,7.5168947]
[1765183779293,15.02675648,136.68,136.67,0.2]
[1765183779691,22.34311585,136.68,136.67,0.2]
[1765183779886,22.34311585,136.68,136.64,4.02030191]
[1765183779887,22.34311585,136.68,136.64,0.2]
[1765183780069,6.15675648,136.65,136.64,0.2]
[1765183780269,14.31675648,136.65,136.64,0.2]
[1765183780469,15.02675648,136.65,136.64,0.2]
[1765183781791,22.34472208,136.65,136.64,0.2]
[1765183785800,16.1879656,136.65,136.64,0.2]
[1765183785976,22.34472208,136.65,136.64,0.2]
[1765183788576,172.55675648,136.72,136.64,14.32524565]
[1765183788577,0.71,136.69,136.64,14.32524565]
[1765183788899,6.15675648,136.65,136.64,0.2]
[1765183789201,14.31675648,136.65,136.64,0.2]
[1765183789387,8.16,136.65,136.64,0.2]
[1765183789580,15.02675648,136.65,136.64,0.2]
[1765183790687,22.34472208,136.65,136.64,0.2]
[1765183794305,40.63963609,136.65,136.62,0.2]
[1765183794606,13.47579329,136.63,136.62,0.2]
[1765183794980,14.18579329,136.63,136.62,0.2]
[1765183800224,14.18579329,136.63,136.62,1e-08]
[1765183800790,14.18579329,136.63,136.53,4.02339392]
[1765183800791,16.308864,136.6,136.53,11.34772809]
[1765183801010,6.15675648,136.55,136.53,4.02339392]
[1765183801197,8.16,136.54,136.53,4.02339392]
[1765183801606,8.16,136.54,136.53,11.34779148]
[1765183801805,8.16,136.54,136.53,12.03779148]
[1765183802005,25.61662884,136.63,136.54,8.80994492]
[1765183802193,13.47711848,136.61,136.57,7.32225232]
[1765183802394,8.00974762,136.62,136.57,7.32225232]
[1765183802595,8.16,136.61,136.58,0.69]
[1765183803312,6.15675648,136.67,136.61,8.80994492]
[1765183803490,8.16,136.66,136.62,6.15675648]
[1765183803692,8.16,136.66,136.62,6.84675648]
[1765183804200,15.47747985,136.66,136.62,14.16600148]
[1765183804920,15.47747985,136.66,136.63,0.69]
[1765183805716,15.47747985,136.66,136.62,13.47600148]
[1765183805717,22.32423633,136.66,136.61,16.81988011]
[1765183805923,6.15675648,136.65,136.6,7.32042733]
[1765183806220,6.15675648,136.65,136.58,0.69]
[1765183806221,6.15675648,136.63,136.58,0.69]
[1765183806394,8.85,136.62,136.58,0.69]
[1765183807012,6.15675648,136.6,136.57,7.32222718]
[1765183807208,8.16,136.59,136.57,7.32222718]
[1765183807422,8.16,136.59,136.58,0.69]
[1765183808114,8.16,136.6,136.58,6.84675648]
[1765183808414,8.16,136.61,136.58,6.84675648]
[1765183808615,8.16,136.61,136.58,9.49994492]
[1765183809000,8.16,136.61,136.58,8.80994492]
[1765183809205,8.16,136.61,136.59,8.01117784]
[1765183810514,7.31941673,136.63,136.59,8.01117784]
[1765183810713,8.16,136.62,136.59,8.01117784]
[1765183811426,14.16617321,136.63,136.59,8.01117784]
[1765183811631,8.16,136.61,136.59,8.01117784]
[1765183812530,8.16,136.61,136.59,0.69]
[1765183812729,14.16601122,136.63,136.59,0.69]
[1765183812909,8.16,136.62,136.59,0.69]
[1765183813634,8.16,136.62,136.59,8.01106004]
[1765183815603,22.32662977,136.62,136.58,16.13155518]
[1765183815805,22.32662977,136.62,136.58,16.82155518]
[1765183816238,8.85,136.62,136.59,7.3210083]
[1765183816408,16.16969405,136.62,136.59,7.3210083]
[1765183816614,16.16969405,136.62,136.58,16.82142905]
[1765183817334,6.84675648,136.61,136.58,8.80994492]
[1765183818039,6.84675648,136.61,136.57,7.32202989]
[1765183818205,6.84675648,136.61,136.57,8.01202989]
[1765183819131,0.69,136.6,136.57,7.32202989]
[1765183819436,8.14,136.59,136.57,8.01202989]
[1765183819817,8.14,136.59,136.58,0.69]
[1765183820137,8.14,136.59,136.57,8.01202989]
[1765183821532,8.14,136.59,136.58,8.80994492]
[1765183821728,8.14,136.59,136.58,9.49994492]
[1765183822131,8.14,136.61,136.58,15.6567014]
[1765183822315,8.14,136.61,136.59,0.69]
[1765183823333,8.14,136.61,136.58,16.13157507]
[1765183823530,22.26692031,136.61,136.58,16.13157507]
[1765183824241,6.80675648,136.6,136.57,7.32183436]
[1765183825122,0.65,136.6,136.57,8.01183436]
[1765183825321,0.65,136.59,136.57,7.32183436]
[1765183825628,21.61707597,136.61,136.57,8.01183436]
[1765183825938,22.26707597,136.61,136.57,8.01183436]
[1765183826339,22.26707597,136.61,136.57,0.69]
[1765183826519,0.65,136.6,136.57,8.80994492]
[1765183826915,0.65,136.6,136.57,9.49994492]
[1765183827741,7.97081264,136.6,136.57,9.49994492]
[1765183829137,7.97081264,136.6,136.57,8.80994492]
[1765183829439,0.65,136.59,136.57,8.80994492]
[1765183830038,7.32081264,136.6,136.57,16.8220473]
[1765183830258,7.32081264,136.6,136.57,9.49994492]
[1765183830438,7.97081264,136.6,136.57,8.80994492]
[1765183830643,6.15675648,136.63,136.58,0.69]
[1765183830853,8.14,136.63,136.6,10.75254937]
[1765183831148,8.14,136.63,136.59,19.56249429]
[1765183831149,8.79,136.63,136.59,19.56249429]
[1765183831345,8.79,136.63,136.58,0.69]
[1765183831346,18.89254937,136.63,136.58,0.69]
[1765183831542,18.89254937,136.63,136.58,8.80994492]
[1765183831543,11.40254937,136.62,136.58,8.80994492]
[1765183831748,11.40254937,136.62,136.58,9.49994492]
[1765183831749,0.65,136.62,136.58,9.49994492]
[1765183831920,7.97003251,136.62,136.58,9.49994492]
[1765183832625,10.75254937,136.65,136.6,8.80994492]
[1765183832829,8.79,136.64,136.6,20.25249429]
[1765183833247,8.79,136.64,136.6,9.49994492]
[1765183833827,7.96903681,136.63,136.6,8.80994492]
[1765183834037,18.72158618,136.63,136.59,16.308864]
[1765183834246,0.65,136.62,136.59,16.308864]
[1765183834550,8.14,136.61,136.59,16.998864]
[1765183835337,8.14,136.61,136.59,24.31998995]
[1765183836349,8.79,136.61,136.59,16.308864]
[1765183839652,8.79,136.61,136.57,8.80994492]
[1765183839653,0.65,136.6,136.57,8.80994492]
[1765183840151,0.65,136.6,136.57,9.49994492]
[1765183840526,0.65,136.6,136.57,16.82204006]
[1765183840730,7.9679656,136.65,136.6,25.11880892]
[1765183840957,8.14,136.64,136.6,25.11880892]
[1765183841250,8.79,136.64,136.6,8.80994492]
[1765183841453,0.65,136.63,136.6,8.80994492]
[1765183842059,7.96922062,136.63,136.6,8.80994492]
[1765183843054,0.65,136.63,136.6,16.13023386]
[1765183843460,7.96914142,136.63,136.6,16.13023386]
[1765183846351,0.65,136.62,136.6,8.80994492]
[1765183846552,8.14,136.61,136.6,8.80994492]
[1765183847337,8.14,136.61,136.59,11.44254937]
[1765183847765,8.14,136.61,136.6,20.25249429]
[1765183848165,8.14,136.61,136.6,19.56249429]
[1765183848675,8.14,136.61,136.6,16.13046556]
[1765183849735,8.14,136.61,136.6,27.57301493]
[1765183850455,8.12,136.62,136.6,27.57301493]
[1765183851036,8.12,136.62,136.6,26.88301493]
[1765183851239,8.8,136.62,136.6,8.80994492]
[1765183851558,8.8,136.62,136.6,16.13048525]
[1765183851772,8.12,136.62,136.6,16.13048525]
[1765183852061,8.12,136.62,136.6,26.88303462]
[1765183852539,8.12,136.62,136.6,27.55303462]
[1765183853758,8.12,136.62,136.6,26.88303462]
[1765183853938,8.12,136.62,136.6,16.13048525]
[1765183854138,0.68,136.61,136.6,16.13048525]
[1765183854837,0.68,136.61,136.59,4.05234672]
[1765183854838,0.68,136.61,136.59,7.32115874]
[1765183855566,0.68,136.61,136.58,36.49276601]
[1765183855943,8.12,136.62,136.59,20.85335479]